bitfinex-derivatives/quotes_BTCF0:USTF0_20220103
["timestamp","ask_amount","ask_price","bid_price","bid_amount"]
[1641203412440,0.14033567,46924.0,46918.0,0.18]
[1641203412840,0.33533567,46924.0,46918.0,0.18]
[1641203413241,0.33533567,46924.0,46916.0,0.18]
[1641203413440,0.33533567,46924.0,46923.0,0.18]
[1641203413845,0.33533567,46924.0,46918.0,0.18]
[1641203414043,0.33533567,46924.0,46921.0,0.18]
[1641203414246,0.14033567,46924.0,46921.0,0.18]
[1641203414843,0.33833567,46924.0,46921.0,0.18]
[1641203416145,0.14033567,46924.0,46921.0,0.18]
[1641203416547,0.14033567,46924.0,46922.0,0.18]
[1641203416744,0.196,46924.0,46922.0,0.18]
[1641203417345,0.196,46924.0,46921.0,0.18]
[1641203418147,0.14033567,46935.0,46921.0,0.18]
[1641203418348,0.14033567,46935.0,46929.0,0.18]
[1641203418849,0.33633567,46934.0,46932.0,0.18]
[1641203419249,0.196,46934.0,46932.0,0.18]
[1641203420249,0.02131235,46937.0,46932.0,0.18]
[1641203420550,0.02131235,46937.0,46928.0,0.32033567]
[1641203420748,0.02131235,46937.0,46936.0,0.18]
[1641203420949,0.21831235,46937.0,46936.0,0.24337]
[1641203421351,0.21831235,46937.0,46936.0,0.06337]
[1641203422149,0.21831421,46937.0,46928.0,0.14033567]
[1641203422349,0.08314421,46937.0,46932.0,0.18]
[1641203422850,0.27514421,46937.0,46932.0,0.18]
[1641203424348,0.08314421,46937.0,46932.0,0.18]
[1641203424549,0.02131421,46937.0,46932.0,0.18]
[1641203424851,0.21531421,46937.0,46932.0,0.18]
[1641203425450,0.194,46937.0,46934.0,0.18]
[1641203426252,0.02131119,46939.0,46934.0,0.18]
[1641203426954,0.21231119,46939.0,46934.0,0.18]
[1641203427555,0.21231119,46939.0,46928.0,0.14033567]
[1641203428054,0.21231119,46939.0,46930.0,0.18]
[1641203428256,0.02131119,46939.0,46930.0,0.18]
[1641203428555,0.02131119,46939.0,46928.0,0.14033567]
[1641203429059,0.20331119,46939.0,46934.0,0.18]
[1641203430257,0.02131119,46939.0,46934.0,0.18]
[1641203430658,0.02131119,46939.0,46928.0,0.14033567]
[1641203430860,0.21431119,46939.0,46930.0,0.18]
[1641203431359,0.21431119,46939.0,46928.0,0.14033567]
[1641203431668,0.21431119,46939.0,46930.0,0.18]
[1641203432059,0.21431119,46939.0,46928.0,0.14033567]
[1641203432259,0.02131119,46939.0,46929.0,0.189794]
[1641203432461,0.02131119,46939.0,46929.0,2.55639063]
[1641203432660,0.02131119,46939.0,46938.0,0.18]
[1641203432862,0.171,46939.0,46938.0,0.27449]
[1641203434264,0.14033567,46940.0,46938.0,0.27449]
[1641203434862,0.33233567,46940.0,46938.0,0.27449]
[1641203435262,0.33233567,46940.0,46938.0,0.09449]
[1641203435564,0.33233567,46940.0,46935.0,0.18]
[1641203435964,0.33233567,46940.0,46932.0,0.009794]
[1641203436162,0.33233567,46940.0,46929.0,2.36659663]
[1641203436362,0.02131135,46939.0,46935.0,0.18]
[1641203436764,0.02131135,46939.0,46938.0,0.18]
[1641203436965,0.195,46939.0,46935.0,0.06]
[1641203437162,0.195,46939.0,46935.0,0.18]
[1641203437865,0.195,46939.0,46930.0,0.18]
[1641203438365,0.14033567,46940.0,46930.0,0.18]
[1641203438663,0.14033567,46940.0,46929.0,2.36659663]
[1641203438864,0.33364667,46940.0,46929.0,2.36659663]
[1641203439163,0.33364667,46940.0,46928.0,0.15012967]
[1641203439363,0.33364667,46940.0,46934.0,0.18]
[1641203439566,0.33364667,46940.0,46929.0,0.18]
[1641203439963,0.33364667,46940.0,46928.0,0.15012967]
[1641203440163,1.45164667,46940.0,46928.0,0.33012967]
[1641203440365,1.45164667,46940.0,46928.0,0.15012967]
[1641203440563,0.33364667,46940.0,46928.0,0.15012967]
[1641203440764,1.27964667,46940.0,46928.0,0.15012967]
[1641203440964,1.44364667,46940.0,46928.0,0.15012967]
[1641203441364,0.32564667,46940.0,46928.0,0.15012967]
[1641203441964,1.44364667,46940.0,46928.0,0.14033567]
[1641203442266,0.02131338,46934.0,46928.0,0.14033567]
[1641203442463,0.09772338,46934.0,46928.0,0.14033567]
[1641203442764,0.09772338,46934.0,46924.0,0.18]
[1641203442967,0.28172338,46934.0,46924.0,0.18]
[1641203443564,1.118,46933.0,46920.0,0.14033567]
[1641203443765,0.14033567,46932.0,46920.0,0.14033567]
[1641203444166,0.14033567,46932.0,46924.0,0.18]
[1641203444364,0.02131585,46929.0,46924.0,0.18]
[1641203444867,0.21131585,46929.0,46924.0,0.18]
[1641203446265,0.02131585,46929.0,46924.0,0.18]
[1641203447066,0.21431585,46929.0,46924.0,0.18]
[1641203448367,0.02131476,46931.0,46926.0,0.18]
[1641203448768,0.14033567,46932.0,46920.0,0.14033567]
[1641203448967,0.14033567,46932.0,46931.0,0.18]
[1641203451070,0.33033567,46932.0,46931.0,0.18]
[1641203452371,0.14033567,46932.0,46931.0,0.18]
[1641203452974,0.33133567,46932.0,46931.0,0.18]
[1641203454474,0.14033567,46932.0,46931.0,0.18]
[1641203454974,0.33133567,46932.0,46931.0,0.18]
[1641203456375,0.14033567,46932.0,46927.0,0.35578304]
[1641203456577,0.14033567,46932.0,46930.0,0.18]
[1641203456975,0.32333567,46932.0,46930.0,0.18]
[1641203458478,0.14033567,46932.0,46930.0,0.18]
[1641203459076,0.33633567,46932.0,46930.0,0.18]
[1641203459476,0.33633567,46932.0,46931.0,0.18]
[1641203459680,0.44854591,46938.0,46931.0,0.21109924]
[1641203459882,0.19984591,46938.0,46937.0,0.36]
[1641203460082,0.13584591,46943.0,46937.0,0.4459]
[1641203460282,0.13584591,46943.0,46942.0,0.38130194]
[1641203460479,0.13584591,46943.0,46942.0,1.478]
[1641203460678,0.0376323,46943.0,46942.0,0.70218792]
[1641203460879,0.02,46944.0,46942.0,0.38130192]
[1641203461081,0.02,46944.0,46942.0,0.57530192]
[1641203461281,0.02,46944.0,46943.0,0.009794]
[1641203461879,0.02,46944.0,46943.0,0.29046534]
[1641203463081,0.02,46944.0,46943.0,0.48346534]
[1641203464482,0.02,46944.0,46943.0,0.29046534]
[1641203464982,0.02,46944.0,46943.0,0.48446534]
[1641203466385,0.02,46944.0,46943.0,0.29046534]
[1641203466583,0.02,46944.0,46943.0,0.36371534]
[1641203466985,0.02,46944.0,46943.0,0.55771534]
[1641203468388,0.02,46944.0,46943.0,0.36371534]
[1641203468791,0.0001,46944.0,46943.0,0.38501689]
[1641203468991,0.0001,46944.0,46943.0,0.58001689]
[1641203469191,0.0001,46944.0,46943.0,0.90012889]
[1641203469393,0.0001,46944.0,46943.0,0.55871534]
[1641203469592,0.0001,46944.0,46943.0,0.55771534]
[1641203470294,0.0001,46944.0,46943.0,0.54371534]
[1641203470597,0.0001,46944.0,46943.0,0.86137434]
[1641203470993,0.14033567,46952.0,46944.0,0.28237557]
[1641203471196,0.14033567,46952.0,46951.0,0.18]
[1641203473014,0.16033567,46952.0,46951.0,0.37]
[1641203473812,0.16033567,46952.0,46951.0,0.19]
[1641203474013,0.16033567,46952.0,46951.0,0.37]
[1641203474214,0.16033567,46952.0,46951.0,0.19]
[1641203475014,0.26833567,46952.0,46951.0,0.185]
[1641203475213,0.26833567,46952.0,46951.0,0.365]
[1641203475818,0.26833567,46952.0,46951.0,0.185]
[1641203476016,0.28964202,46952.0,46951.0,0.185]
[1641203476416,0.16164202,46952.0,46946.0,0.18]
[1641203477116,0.32964202,46952.0,46946.0,0.363]
[1641203477516,0.32964202,46952.0,46946.0,0.183]
[1641203477718,0.32964202,46952.0,46946.0,0.363]
[1641203478321,0.32964202,46952.0,46946.0,0.18]
[1641203478518,0.16164202,46952.0,46946.0,0.18]
[1641203479123,0.29764202,46952.0,46946.0,0.364]
[1641203480420,0.16164202,46952.0,46944.0,0.18]
[1641203481023,0.30964202,46952.0,46944.0,0.368]
[1641203481621,0.30964202,46952.0,46944.0,0.188]
[1641203481820,0.30964202,46952.0,46946.0,0.18]
[1641203482021,0.30964202,46952.0,46944.0,0.188]
[1641203482422,0.16164202,46952.0,46943.0,0.29046534]
[1641203482622,0.23312202,46952.0,46943.0,0.29046534]
[1641203483021,0.23312202,46952.0,46943.0,0.47946534]
[1641203484324,0.23312202,46952.0,46943.0,0.29046534]
[1641203484523,0.23312202,46952.0,46946.0,0.18]
[1641203485026,0.40412202,46952.0,46946.0,0.363]
[1641203485227,0.40412202,46952.0,46946.0,0.183]
[1641203486228,0.40412202,46952.0,46946.0,0.363]
[1641203486426,0.23312202,46952.0,46946.0,0.18]
[1641203486628,0.16164202,46952.0,46946.0,0.18]
[1641203487028,0.32964202,46952.0,46946.0,0.363]
[1641203488431,0.16164202,46952.0,46943.0,0.29046534]
[1641203488832,0.16164202,46952.0,46946.0,0.18]
[1641203490435,0.16164202,46952.0,46943.0,0.29046534]
[1641203490633,0.16164202,46952.0,46946.0,0.18]
[1641203493138,0.34164202,46952.0,46946.0,0.358]
[1641203494335,0.16164202,46952.0,46946.0,0.18]
[1641203494536,1.70561174,46952.0,46943.0,0.47046534]
[1641203494736,0.58761174,46952.0,46943.0,0.29046534]
[1641203495135,0.58761174,46952.0,46943.0,0.65946534]
[1641203495637,0.58761174,46952.0,46946.0,0.18]
[1641203495837,1.70561174,46952.0,46943.0,0.65946534]
[1641203496037,1.70561174,46952.0,46946.0,0.08976]
[1641203497237,1.89161174,46952.0,46946.0,0.24776]
[1641203497638,1.89161174,46952.0,46946.0,0.42776]
[1641203498339,1.70561174,46952.0,46946.0,0.26976]
[1641203498638,1.70561174,46952.0,46946.0,0.08976]
[1641203499138,1.89361174,46952.0,46946.0,0.24076]
[1641203499346,1.89361174,46952.0,46946.0,0.42076]
[1641203500343,1.89361174,46952.0,46946.0,0.26976]
[1641203500542,1.70561174,46952.0,46946.0,0.08976]
[1641203500840,1.70561174,46952.0,46946.0,0.26976]
[1641203501042,1.70561174,46952.0,46946.0,0.18]
[1641203501242,1.88361174,46952.0,46946.0,0.22756]
[1641203501843,0.76561174,46952.0,46946.0,0.22756]
[1641203502041,0.33964202,46952.0,46950.0,0.18]
[1641203502442,0.16164202,46952.0,46950.0,0.18]
[1641203502842,0.14033567,46952.0,46950.0,0.18]
[1641203503244,0.14033567,46952.0,46950.0,0.366]
[1641203504743,0.14033567,46952.0,46950.0,0.18]
[1641203505143,0.14033567,46952.0,46950.0,0.366]
[1641203506548,0.14033567,46952.0,46950.0,0.18]
[1641203507147,0.30433567,46952.0,46950.0,0.367]
[1641203508650,0.14033567,46952.0,46950.0,0.18]
[1641203509250,0.30633567,46952.0,46950.0,0.367]
[1641203510450,0.30633567,46952.0,46950.0,0.18]
[1641203510651,0.14033567,46952.0,46950.0,0.18]
[1641203511152,0.30833567,46952.0,46950.0,0.367]
[1641203512652,0.30833567,46952.0,46950.0,0.18]
[1641203512653,0.14033567,46952.0,46950.0,0.18]
[1641203513270,0.30733567,46952.0,46950.0,0.367]
[1641203514371,0.14033567,46952.0,46950.0,0.18]
[1641203514574,0.14033567,46952.0,46946.0,0.35578304]
[1641203514771,0.14033567,46952.0,46950.0,0.06]
[1641203514971,0.14033567,46952.0,46950.0,0.18]
[1641203516371,0.14033567,46952.0,46944.0,0.35578304]
[1641203516675,0.02130604,46950.0,46944.0,0.35578304]
[1641203517177,0.02130604,46950.0,46948.0,0.18]
[1641203518072,0.02130604,46950.0,46944.0,0.188]
[1641203518572,0.02130604,46950.0,46943.0,0.28067134]
[1641203519174,0.02130604,46950.0,46949.0,0.18]
[1641203521177,0.02130604,46950.0,46949.0,0.359]
[1641203521178,0.20230604,46950.0,46949.0,0.359]
[1641203521778,0.20230604,46950.0,46949.0,0.179]
[1641203521979,0.20230604,46950.0,46949.0,0.359]
[1641203522480,0.02130604,46950.0,46949.0,0.18]
[1641203523278,0.21030604,46950.0,46949.0,0.332]
[1641203523679,0.21030604,46950.0,46949.0,0.152]
[1641203524280,0.21030604,46950.0,46949.0,0.332]
[1641203524481,0.02130604,46950.0,46949.0,0.18]
[1641203525083,0.02130604,46950.0,46942.0,0.009794]
[1641203525281,0.19130604,46950.0,46949.0,0.164]
[1641203525582,0.19130604,46950.0,46949.0,0.344]
[1641203526482,0.19130604,46950.0,46949.0,0.18]
[1641203526782,0.02130604,46950.0,46949.0,0.18]
[1641203527185,0.18830604,46950.0,46949.0,0.342]
[1641203527783,0.167,46950.0,46949.0,0.342]
[1641203528385,1.70954503,46954.0,46949.0,0.18]
[1641203528884,1.70954503,46954.0,46944.0,0.25962]
[1641203529284,1.70954503,46954.0,46949.0,0.186]
[1641203529685,0.14033567,46954.0,46949.0,0.186]
[1641203529884,0.14033567,46954.0,46951.0,0.18]
[1641203531288,0.14033567,46954.0,46951.0,0.361]
[1641203532188,0.14033567,46954.0,46951.0,0.181]
[1641203532586,0.14033567,46954.0,46948.0,0.18]
[1641203532788,0.14033567,46954.0,46947.0,0.18]
[1641203532987,0.14033567,46954.0,46953.0,0.18]
[1641203533188,0.14033567,46954.0,46952.0,0.18]
[1641203535190,0.14033567,46954.0,46952.0,0.175]
[1641203537192,0.14033567,46954.0,46952.0,0.168]
[1641203537592,0.14033567,46954.0,46952.0,0.348]
[1641203538693,0.14033567,46954.0,46952.0,0.18]
[1641203539296,0.14033567,46954.0,46952.0,0.353]
[1641203540499,0.14033567,46954.0,46952.0,0.18]
[1641203541296,0.14033567,46954.0,46952.0,0.35]
[1641203541496,0.14033567,46954.0,46952.0,0.17]
[1641203542497,1.25833567,46954.0,46952.0,0.17]
[1641203542698,1.25833567,46954.0,46947.0,0.189794]
[1641203542699,0.02130546,46953.0,46947.0,0.18]
[1641203543199,0.02130546,46953.0,46947.0,0.366]
[1641203544198,0.02130546,46953.0,46947.0,0.186]
[1641203544497,0.02130546,46953.0,46950.0,0.18]
[1641203545300,0.02130546,46953.0,46950.0,0.347]
[1641203546501,0.02130546,46953.0,46950.0,0.18]
[1641203546705,1.19130936,46955.0,46952.0,0.18]
[1641203546902,1.68991777,46965.0,46954.0,0.36]
[1641203547103,1.68991777,46965.0,46960.0,0.18]
[1641203547504,1.68991777,46965.0,46960.0,0.32033567]
[1641203547705,1.68991777,46965.0,46964.0,0.18]
[1641203547905,0.02129821,46968.0,46964.0,0.26452]
[1641203548313,0.02129821,46968.0,46967.0,0.18]
[1641203548709,1.08586321,46968.0,46967.0,0.18]
[1641203549111,1.08586321,46968.0,46960.0,0.14033567]
[1641203549310,1.08586321,46968.0,46967.0,0.167]
[1641203550111,1.064565,46968.0,46967.0,0.347]
[1641203550510,1.064565,46971.0,46967.0,0.347]
[1641203550710,1.064565,46968.0,46967.0,0.18]
[1641203551113,1.118,46970.0,46967.0,0.18]
[1641203551410,0.14033567,46972.0,46968.0,0.18]
[1641203551812,1.064509,46971.0,46968.0,0.18]
[1641203552614,1.064509,46971.0,46967.0,0.154]
[1641203553219,1.064509,46971.0,46967.0,0.165]
[1641203553420,1.064509,46971.0,46970.0,0.18]
[1641203553616,1.064509,46971.0,46967.0,0.165]
[1641203554626,1.064509,46971.0,46961.0,0.18]
[1641203555024,1.064509,46971.0,46960.0,0.14033567]
[1641203555224,1.064509,46971.0,46966.0,0.18]
[1641203557326,1.064509,46971.0,46966.0,0.176]
[1641203557726,0.02129746,46970.0,46966.0,0.176]
[1641203557927,1.13929746,46970.0,46966.0,0.176]
[1641203558127,1.3044733,46969.0,46966.0,0.176]
[1641203558328,1.3044733,46969.0,46967.0,0.18]
[1641203558530,1.3044733,46969.0,46966.0,0.176]
[1641203558728,1.3044733,46969.0,46968.0,0.18]
[1641203559331,1.3044733,46969.0,46968.0,0.328]
[1641203559829,1.3044733,46969.0,46968.0,0.148]
[1641203560231,2.4224733,46969.0,46968.0,0.148]
[1641203560532,2.4437728,46969.0,46962.0,0.18]
[1641203560831,2.5162328,46969.0,46960.0,0.14033567]
[1641203561033,0.02130083,46963.0,46960.0,0.14033567]
[1641203563335,0.20030083,46963.0,46960.0,0.22933567]
[1641203564032,0.179,46963.0,46960.0,0.22933567]
[1641203564233,0.179,46963.0,46962.0,0.18]
[1641203564732,0.02129967,46965.0,46960.0,0.14033567]
[1641203565233,0.02129967,46965.0,46960.0,0.32533567]
[1641203565633,0.02129967,46965.0,46964.0,0.18]
[1641203566135,0.02129967,46965.0,46960.0,0.32533567]
[1641203566533,0.02129967,46965.0,46960.0,0.14033567]
[1641203567235,0.02129967,46965.0,46960.0,0.32533567]
[1641203567433,0.02129967,46965.0,46964.0,0.18]
[1641203567834,0.02129967,46965.0,46960.0,0.32533567]
[1641203568234,0.02129967,46965.0,46964.0,0.18]
[1641203569035,0.02129967,46965.0,46960.0,0.32033567]
[1641203569237,0.02129967,46965.0,46964.0,0.153]
[1641203570538,0.02129967,46965.0,46960.0,0.14033567]
[1641203570937,0.02129967,46965.0,46960.0,0.32033567]
[1641203571238,0.02129967,46965.0,46961.0,0.18]
[1641203571838,0.02129967,46965.0,46964.0,0.18]
[1641203572039,0.02129967,46965.0,46960.0,0.32433567]
[1641203572238,0.02129967,46965.0,46964.0,0.18]
[1641203572938,0.02129967,46965.0,46960.0,0.14033567]
[1641203573138,0.09360967,46965.0,46960.0,0.14033567]
[1641203573338,0.09360967,46965.0,46964.0,0.14]
[1641203574639,0.09360967,46965.0,46960.0,0.14033567]
[1641203575340,0.09360967,46965.0,46960.0,0.24133567]
[1641203575941,0.12322896,46961.0,46960.0,0.101]
[1641203576142,1.26253054,46961.0,46950.0,0.59297173]
[1641203576344,0.12324195,46956.0,46950.0,0.35578304]
[1641203577343,0.26124195,46956.0,46950.0,0.145]
[1641203577545,0.138,46956.0,46950.0,0.145]
[1641203577943,0.138,46956.0,46955.0,0.18]
[1641203578745,0.14033567,46958.0,46955.0,0.18]
[1641203579345,0.29833567,46958.0,46955.0,0.357]
[1641203581346,0.33633567,46958.0,46955.0,0.18]
[1641203582745,0.14033567,46958.0,46955.0,0.18]
[1641203583345,0.31433567,46958.0,46955.0,0.325]
[1641203584747,0.14033567,46958.0,46955.0,0.18]
[1641203586047,0.33633567,46958.0,46955.0,0.18]
[1641203586648,0.14033567,46958.0,46955.0,0.18]
[1641203587349,0.30933567,46958.0,46955.0,0.335]
[1641203588251,0.30933567,46958.0,46955.0,0.515]
[1641203588652,0.02130025,46964.0,46955.0,0.36]
[1641203588854,0.02130025,46964.0,46963.0,0.18]
[1641203589053,0.02130025,46964.0,46963.0,0.24922]
[1641203589359,0.21330025,46964.0,46963.0,0.24922]
[1641203589855,0.21330025,46964.0,46963.0,0.06922]
[1641203590856,0.02130025,46964.0,46963.0,0.06922]
[1641203591056,0.3472407,46967.0,46963.0,0.24922]
[1641203591257,0.3472407,46967.0,46966.0,0.18]
[1641203591455,0.14033567,46967.0,46966.0,0.18]
[1641203592456,0.14033567,46967.0,46966.0,0.36]
[1641203592656,0.14033567,46972.0,46966.0,0.369794]
[1641203592856,0.14033567,46972.0,46971.0,0.18]
[1641203593056,0.14033567,46972.0,46971.0,0.36]
[1641203593255,0.14033567,46972.0,46971.0,0.18]
[1641203593456,0.30033567,46972.0,46971.0,0.365]
[1641203594861,0.14033567,46972.0,46971.0,0.18]
[1641203595460,0.30033567,46972.0,46971.0,0.365]
[1641203595860,0.30033567,46972.0,46971.0,0.185]
[1641203596262,0.30033567,46972.0,46971.0,0.365]
[1641203596662,0.14033567,46972.0,46971.0,0.18]
[1641203597072,0.14033567,46972.0,46964.0,0.18]
[1641203597269,0.14033567,46972.0,46971.0,0.18]
[1641203597270,1.71149555,46972.0,46971.0,0.18]
[1641203597568,1.85849555,46972.0,46971.0,0.357]
[1641203597969,1.85849555,46972.0,46971.0,0.177]
[1641203598769,1.71149555,46972.0,46964.0,0.18]
[1641203598970,0.14033567,46972.0,46971.0,0.18]
[1641203599772,0.14033567,46972.0,46971.0,0.36]
[1641203599973,0.14033567,46978.0,46971.0,0.18]
[1641203599974,1.57144223,46973.0,46971.0,0.18]
[1641203600174,1.57144223,46973.0,46972.0,0.18]
[1641203600376,1.57144223,46973.0,46968.0,0.18]
[1641203600577,1.57144223,46975.0,46966.0,0.14033567]
[1641203600876,1.57144223,46975.0,46972.0,0.18]
[1641203601078,1.57144223,46975.0,46966.0,0.14033567]
[1641203601275,1.57144223,46975.0,46968.0,0.18]
[1641203601475,1.57144223,46974.0,46972.0,0.351]
[1641203601676,1.57144223,46974.0,46972.0,0.531]
[1641203601876,1.57144223,46974.0,46972.0,0.351]
[1641203602278,0.14033567,46978.0,46972.0,0.351]
[1641203602675,0.14033567,46978.0,46972.0,0.18]
[1641203602879,0.14033567,46978.0,46974.0,0.18]
[1641203603479,0.14033567,46978.0,46966.0,0.14033567]
[1641203603679,0.14033567,46978.0,46974.0,0.18]
[1641203603879,0.14033567,46978.0,46971.0,0.18]
[1641203604078,0.02129475,46976.0,46967.0,0.18]
[1641203604280,0.02129475,46976.0,46975.0,0.18]
[1641203604478,0.02129475,46976.0,46973.0,0.18]
[1641203604682,0.02129475,46976.0,46970.0,0.18]
[1641203605079,0.10205475,46976.0,46970.0,0.18]
[1641203605480,1.22005475,46976.0,46970.0,0.18]
[1641203605677,0.10205475,46976.0,46970.0,0.18]
[1641203605878,0.10205475,46976.0,46975.0,0.18]
[1641203606079,0.10205475,46976.0,46966.0,0.14033567]
[1641203606481,0.10671633,46977.0,46971.0,0.18]
[1641203606677,0.10671633,46977.0,46966.0,0.14033567]
[1641203606879,0.10671633,46977.0,46976.0,0.18]
[1641203607080,0.10671633,46977.0,46966.0,0.14033567]
[1641203607281,0.10671633,46977.0,46973.0,0.18]
[1641203607480,0.02129751,46974.0,46966.0,0.14033567]
[1641203607681,0.1639689,46970.0,46966.0,0.14033567]
[1641203608282,0.1639689,46970.0,46969.0,0.18]
[1641203608483,0.02129751,46974.0,46969.0,0.18]
[1641203609082,1.20998751,46976.0,46966.0,0.14033567]
[1641203609383,0.194,46974.0,46966.0,0.14033567]
[1641203609583,0.194,46974.0,46973.0,0.18]
[1641203609787,0.194,46974.0,46967.0,0.18]
[1641203610083,0.194,46974.0,46973.0,0.18]
[1641203610284,0.16396418,46972.0,46966.0,0.14033567]
[1641203610484,0.18526077,46972.0,46966.0,0.14033567]
[1641203610684,0.16845896,46970.0,46966.0,0.14033567]
[1641203610887,0.02129956,46967.0,46966.0,0.14033567]
[1641203611085,0.09400956,46967.0,46963.0,0.18]
[1641203611385,0.09400956,46967.0,46959.0,0.14033567]
[1641203611386,0.28400956,46967.0,46959.0,0.14033567]
[1641203611885,0.28400956,46967.0,46959.0,0.32033567]
[1641203612084,0.28400956,46967.0,46966.0,0.18]
[1641203612287,0.28400956,46967.0,46959.0,0.14033567]
[1641203612485,0.28400956,46967.0,46966.0,0.18]
[1641203612685,0.28400956,46967.0,46959.0,0.14033567]
[1641203612886,0.09400956,46967.0,46959.0,0.14033567]
[1641203613086,0.09400956,46967.0,46959.0,0.32033567]
[1641203613487,0.02129956,46967.0,46966.0,0.18]
[1641203614687,0.16846562,46968.0,46966.0,0.18]
[1641203615488,0.36046562,46968.0,46966.0,0.18]
[1641203616189,0.36046562,46968.0,46959.0,0.15012967]
[1641203616690,0.36046562,46968.0,46966.0,0.18]
[1641203616889,0.17021178,46968.0,46966.0,0.18]
[1641203617390,0.36021178,46968.0,46966.0,0.18]
[1641203618190,0.36021178,46968.0,46959.0,0.50591271]
[1641203618391,1.49951039,46968.0,46965.0,0.18]
[1641203618589,0.38151039,46968.0,46959.0,0.50591271]
[1641203618789,0.19151039,46968.0,46967.0,0.18]
[1641203619388,0.37851039,46968.0,46967.0,0.18]
[1641203619993,1.94995262,46968.0,46967.0,0.18]
[1641203620190,1.94995262,46968.0,46959.0,0.15012967]
[1641203620391,1.94995262,46968.0,46967.0,0.18]
[1641203620791,0.19151039,46968.0,46967.0,0.18]
[1641203620991,0.17021178,46968.0,46967.0,0.18]
[1641203621393,0.35821178,46968.0,46959.0,0.33012967]
[1641203621692,0.37951069,46968.0,46967.0,0.18]
[1641203622595,0.35821178,46968.0,46967.0,0.18]
[1641203622794,0.17021178,46968.0,46967.0,0.18]
[1641203622992,0.17021178,46968.0,46960.0,0.18]
[1641203623193,1.28821178,46968.0,46960.0,0.18]
[1641203623395,0.02129866,46967.0,46959.0,0.15012967]
[1641203623594,0.02129866,46967.0,46964.0,0.18]
[1641203624493,0.02129866,46967.0,46966.0,0.18]
[1641203625495,0.21329866,46967.0,46966.0,0.18]
[1641203626796,0.02129866,46967.0,46966.0,0.18]
[1641203627495,0.21029866,46967.0,46966.0,0.18]
[1641203628702,0.72854385,46967.0,46955.0,0.35578304]
[1641203628899,0.18,46956.0,46955.0,0.35578304]
[1641203629098,0.25495,46956.0,46955.0,0.35578304]
[1641203629501,0.26295,46956.0,46955.0,0.35578304]
[1641203629700,0.26295,46956.0,46954.0,0.35578304]
[1641203630403,0.188,46956.0,46954.0,0.35578304]
[1641203630600,0.188,46956.0,46951.0,1.00930492]
[1641203630601,0.188,46956.0,46951.0,0.18]
[1641203630802,0.18,46962.0,46955.0,0.14033567]
[1641203631000,0.18,46962.0,46955.0,0.21097567]
[1641203631801,0.30197438,46967.0,46955.0,0.21097567]
[1641203632101,0.48197438,46967.0,46955.0,0.21097567]
[1641203632503,0.30197438,46967.0,46955.0,0.21097567]
[1641203632806,0.02129747,46970.0,46961.0,0.18]
[1641203633002,0.02129747,46970.0,46965.0,0.12]
[1641203633204,0.02129747,46970.0,46965.0,0.21525]
[1641203633603,0.17329747,46970.0,46965.0,0.27525]
[1641203634705,0.17329747,46970.0,46967.0,0.14033567]
[1641203634904,0.02129747,46970.0,46967.0,0.14033567]
[1641203635604,0.02129747,46970.0,46967.0,0.33533567]
[1641203636806,0.02129747,46970.0,46967.0,0.14033567]
[1641203637505,0.18229747,46970.0,46967.0,0.14033567]
[1641203638908,0.02129747,46970.0,46967.0,0.14033567]
[1641203639609,0.18829747,46970.0,46967.0,0.14033567]
[1641203640309,0.167,46970.0,46967.0,0.14033567]
[1641203640513,0.02129786,46969.0,46967.0,0.14033567]
[1641203641610,0.19929786,46969.0,46967.0,0.14033567]
[1641203643513,0.20029786,46969.0,46967.0,0.14033567]
[1641203645014,0.02129786,46969.0,46967.0,0.14033567]
[1641203645616,0.19829786,46969.0,46967.0,0.14033567]
[1641203646917,0.02129786,46969.0,46967.0,0.14033567]
[1641203647121,0.02,46995.0,46968.0,0.18]
[1641203647419,0.02129131,46984.0,46971.0,0.18]
[1641203647619,0.02129131,46984.0,46979.0,0.18]
[1641203647817,0.02129131,46984.0,46975.0,0.18]
[1641203648018,0.02129131,46984.0,46972.0,0.009794]
[1641203648619,0.02129131,46984.0,46980.0,0.18]
[1641203648920,0.02129131,46984.0,46981.0,0.009794]
[1641203649119,2.00353567,46992.0,46981.0,0.067554]
[1641203649520,0.148,46984.0,46981.0,0.067554]
[1641203651022,0.02128786,46991.0,46981.0,0.067554]
[1641203651227,1.13928786,46991.0,46981.0,0.067554]
[1641203651424,0.02128786,46991.0,46981.0,0.067554]
[1641203651831,0.18,46987.0,46981.0,0.067554]
[1641203652032,0.02128786,46991.0,46981.0,0.067554]
[1641203653436,0.18,46987.0,46981.0,0.067554]
[1641203653635,0.09328786,46991.0,46981.0,0.067554]
[1641203654236,0.18,46988.0,46981.0,0.067554]
[1641203654835,0.09328786,46991.0,46983.0,0.06]
[1641203655037,1.8632,46992.0,46990.0,0.14033567]
[1641203655238,0.02,46995.0,46990.0,0.14033567]
[1641203655640,0.02,46995.0,46990.0,0.33133567]
[1641203656838,0.02,46995.0,46990.0,0.14033567]
[1641203657638,0.02,46995.0,46990.0,0.32933567]
[1641203659040,0.02,46995.0,46990.0,0.14033567]
[1641203659643,0.194,46995.0,46990.0,0.32533567]
[1641203661644,0.02,46995.0,46990.0,0.33133567]
[1641203662843,0.02,46995.0,46990.0,0.14033567]
[1641203663647,0.02,46995.0,46990.0,0.32933567]
[1641203664744,0.02,46995.0,46991.0,0.18]
[1641203665145,1.56864906,47003.0,46994.0,0.14033567]
[1641203665347,1.56864906,47003.0,47002.0,0.18]
[1641203666150,1.9587,47008.0,47002.0,0.18]
[1641203666349,1.56864906,47011.0,47002.0,0.18]
[1641203666548,1.56864906,47011.0,47003.0,0.009794]
[1641203667147,0.18,47008.0,47003.0,0.14033567]
[1641203667348,0.18,47004.0,47003.0,0.14033567]